Workbook

Sheet tytuł
B5: Inwentaryzacja emisji gazów cieplarnianych w Mieście Stoczek Łukowski
B24: W niniejszym opracowaniu skorzystano ze wskaźników emisji oraz wartości opałowych paliw zawartych w materiałach opublikowanych przez Krajowy Ośrodek Bilansowania
B25: i Zarządzania Emisjami
B27: Rok bazowy | C27: 2007

Sheet założenia
A1: Założenia do opracowania wyników inwentaryzacji
A4: Lp. | B4: Nazwa | C4: 2007 | D4: j.m. | E4: źródło danych
B5: Ludność
A6: 1 | B6: Liczba mieszkańców Gminy | C6: 2709 | D6: osoba | E6: BDL
A7: 2 | B7: Liczba mieszkańców Powiatu | C7: 107 997 | D7: osoba | E7: BDL
B9: Energia Elektryczna
B10: Ilość energii elektrycznej zużytej przez odbiorców z obszaru gminy Janów Podlaski
A11: 3 | B11: Całkowite zużycie energii elektrycznej | C11: ='energia elektryczna'!D11/1000 -> 2455.718 | D11: (MWh/rok) | E11: PGE Dystrybucja S.A. Oddział Lublin
A12: 4 | B12: Zużycie energii elektrycznej na mieszkańca | C12: 730 | D12: (KWh/rok) | E12: PGE Dystrybucja S.A. Oddział Lublin
A13: 5 | B13: Zużycie energii elektrycznej na odbiorcę | D13: (KWh/rok) | E13: PGE Dystrybucja S.A. Oddział Lublin
B14: gospodarstwa domowe
A15: 6 | B15: Liczba gospodarstw domowych w Gminie | C15: 948 | D15: sztuka | E15: BDL
A16: 7 | B16: Liczba gospodarstw domowych w Powiecie | C16: 40909 | D16: sztuka | E16: BDL
A17: 8 | B17: Powierzchnia użytkowa mieszkań | C17: 63576 | D17: m2 | E17: BDL
A18: 9 | B18: Przeciętna powierzchnia użytkowa 1 mieszkania w m²: | C18: 67 | D18: m2 | E18: BDL
B20: Struktura ogrzewania: udział poszczególnych źródeł energii
A21: 10 | B21: Węgiel kamienny | C21: 960 | D21: tony | E21: BDL
A22: 11 | B22: Energia elektryczna | D22: MWh | E22: BDL
A23: 12 | B23: Gaz ziemny | C23: 343314 | D23: m3 | E23: BDL
A24: 13 | B24: Drewno | C24: 572.3 | D24: m3 | E24: UG
A25: 14 | B25: Olej opałowy | C25: 108 | D25: tony | E25: UG
A26: 15 | B26: Zapotrzebowanie na energię cieplną | C26: 200 | D26: kWh/m2 /rok
B27: Wartość opałowa:
A28: 16 | B28: Węgiel kamienny | C28: 24 | D28: GJ/t
A29: 17 | B29: Gaz ziemny | C29: 0.03995904 | D29: GJ/m3 | F29: Pellet ze słomy | G29: 16 | H29: GJ/t
A30: 18 | B30: Drewno | C30: 7.64 | D30: GJ/m3
A31: 19 | B31: Olej opałowy | C31: 43 | D31: GJ/t
B32: Transport
B33: Liczba pojazdów poruszających się po terenie Miasta
A34: 20 | B34: samochody osobowe | C34: 700 | D34: sztuka | E34: BDL
A35: 21 | B35: motocykle | C35: 150 | D35: sztuka | E35: BDL
A36: 22 | B36: samochody dostawcze | C36: 120 | D36: sztuka | E36: BDL
A37: 23 | B37: samochody ciężarowe | C37: 20 | D37: sztuka | E37: BDL
A38: 24 | B38: samochody ciężarowe 'z przyczepą | C38: 12 | D38: sztuka | E38: BDL
A39: 25 | B39: ciągniki | C39: 50 | D39: sztuka | E39: BDL
A40: 26 | B40: autobusy | C40: 4 | D40: sztuka | E40: BDL
B41: Oświetlenie Publiczne
A42: 27 | B42: Urząd Gminy
A43: 28 | B43: Liczba lamp | C43: 267 | D43: szt. | E43: UG
A44: 29 | B44: Zużycie energii elektrycznej | C44: 101018 | D44: kWh | E44: UG

Sheet wskaźniki emisji
A1: Wskaźniki emisji przyjęte do wyliczeń
B4: Źródło: Wartości opałowe (WO) i wskaźniki emisji CO2 (WE) w roku 2011 do raportowania w ramach Wspólnotowego Systemu Handlu Uprawnieniami do Emisji za rok 2014
A6: lp. | B6: Rodzaj paliwa | C6: standardowe wskaźniki emisji
A7: 1 | B7: drewno | C7: 0.109 | D7: MgCO2/GJ
A8: 2 | B8: gaz ziemny | C8: 0.055 | D8: MgCO2/GJ.
A9: 3 | B9: olej opałowy | C9: 0.076 | D9: MgCO2/GJ
A10: 4 | B10: węgiel kamienny | C10: 0.098 | D10: MgCO2/GJ
A11: 5 | B11: energia elektryczna | C11: 0.89 | D11: Mg/MWh
B13: założenia
B14: 1 GJ | C14: 0.2777777778
B15: 1 MWh | C15: =3.6 -> 3.6
A17: Wartości opałowe i ekwiwalent CO2
A19: lp. | B19: rodzaj paliwa | C19: wartość opałowa | D19: źródło danych | E19: GJ/Mg | F19: MWh | G19: tCO2 | I19: 1 l | J19: 1 Mg | K19: 1 m3 | N19: 1 MWh
A20: 1 | B20: benzyna | C20: 44.3 | D20: IPCC 2006 | E20: =C20 -> 44.3 | F20: =E20*$C$14 -> 12.30555556 | G20: =F20*#REF! ->  | I20: 0,755 kg | J20: =0.755*0.001 -> 0.000755 | N20: =E20*J20*$C$14 -> 0.009290694444
A21: 2 | B21: ciepło sieciowe | C21: 94.5 | E21: =C21 -> 94.5 | F21: =94.5/C14/1000 -> 0.3402 | G21: =F21 -> 0.3402
A22: 3 | B22: drewno | C22: 9500 | D22: KCIE, 2003 | E22: - | F22: =C22/1000*$C$14 -> 2.638888889 | G22: =F22*C7 -> 0.2876388889
A23: 4 | B23: gaz ziemny | C23: 48 | D23: IPCC 2006 | E23: =C23 -> 48 | F23: =E23*$C$14 -> 13.33333333 | G23: =F23*C8 -> 0.7333333333 | J23: =0.716/1000 -> 0.000716 | L23: 0,716 kg/m3 | M23: PGNIG | N23: =E23*J23*$C$14 -> 0.009546666667
A24: 5 | B24: koks | C24: 7.8 | D24: IPCC 2006 | E24: 7.8 | F24: 2.166666667 | G24: =F24*#REF! -> 
A25: 6 | B25: LPG | C25: 47.3 | D25: IPCC 2006 | E25: 47.3 | F25: 13.13888889 | G25: =F25*#REF! ->  | I25: 0,5 kg | J25: =0.5*0.001 -> 0.0005 | N25: =E25*J25*$C$14 -> 0.006569444444
A26: 7 | B26: odpady komunalne | C26: 10 | D26: IPCC 2006 | E26: 10 | F26: 2.777777778 | G26: =F26*#REF! -> 
A27: 8 | B27: olej napędowy | C27: 43 | D27: IPCC 2006 | E27: 43 | F27: 11.94444444 | G27: =F27*#REF! ->  | I27: 0,84 kg | J27: =0.84*0.001 -> 0.00084 | N27: =E27*J27*$C$14 -> 0.01003333333
A28: 9 | B28: olej opałowy | C28: 40.4 | D28: IPCC 2006 | E28: 40.4 | F28: 11.22222222 | G28: =F28*C9 -> 0.8528888889 | I28: 0,85 kg | J28: =0.85*0.001 -> 0.00085 | N28: =E28*J28*$C$14 -> 0.009538888889
A29: 10 | B29: węgiel brunatny | C29: 11.9 | D29: IPCC 2006 | E29: 11.9 | F29: 3.305555556 | G29: =F29*#REF! -> 
A30: 11 | B30: węgiel kamienny | C30: 26.7 | D30: IPCC 2006 | E30: 26.7 | F30: 7.416666667 | G30: =F30*C10 -> 0.7268333333
A31: 12 | B31: energia elektryczna | D31: IPCC 2006 | F31: 1 | G31: =F31*C11 -> 0.89
A32: 13 | B32: biomasa | D32: KCIE, 2003 | F32: =F22 -> 2.638888889 | G32: =F32*C12 -> 0
B33: Średnie jednostkowe emisje CO2 dla poszczególnych kategorii pojazdów:
A34: 1 | B34: samochody osobowe | C34: 155 | D34: g/km
A35: 2 | B35: samochody dostawcze | C35: 200 | D35: g/km
A36: 3 | B36: samochody ciężarowe jednoczłonowe 450 g/km | C36: 450 | D36: g/km
A37: 4 | B37: samochody ciężarowe z naczepą/przyczepą | C37: 900 | D37: g/km
A38: 5 | B38: autobusy | C38: 450 | D38: g/km
A39: 6 | B39: motocykle | C39: 150 | D39: g/km

Sheet wyniki
B1: rok bazowy | C1: =tytuł!C25 -> 0
B6: Tabela: Finalne zużycie energii w roku bazowym w gminie [GJ]
A7: lp. | B7: Kategoria | C7: końcowe zużycie energii [GJ]
M8: OZE | R8: Razem
C9: energia elektryczna | D9: ciepło / chłód | E9: gaz ziemny | F9: gaz ziemny | G9: olej opałowy | H9: koks opałowy | I9: drewno | J9: węgiel brunatny | K9: węgiel kamienny | L9: inne paliwa kopalne | M9: olej roślinny | N9: inna biomasa | O9: słoneczna, cieplna | P9: geotermiczna | Q9: LPG
A10: I | B10: Gminne jednostki organizacyjne
A11: 1 | B11: Ogrzewanie budynków administracji publicznej | C11: 0 | D11: =INT('budynki uzytecznosci publicznej'!I18*'wskaźniki emisji'!C14+#REF!*'wskaźniki emisji'!C14) ->  | E11: =INT('budynki uzytecznosci publicznej'!H18*'wskaźniki emisji'!N23+#REF!*'wskaźniki emisji'!N23) ->  | F11: ='budynki uzytecznosci publicznej'!I18 -> 1022.951424 | H11: 0 | I11: 0 | K11: ='budynki uzytecznosci publicznej'!J18 -> 360 | Q11: 0 | R11: =SUM(Q11,K11,I11,H11,G11,F11,C11) -> 1382.951424
A12: 2 | B12: Budynki administracji publicznej - energia elektryczna | C12: ='analizy sektor publiczny'!C6 -> 1357.668 | D12: =INT(#REF!*'wskaźniki emisji'!C14) ->  | E12: =INT(#REF!*'wskaźniki emisji'!N23) ->  | F12: 0 | G12: 0 | H12: 0 | I12: 0 | K12: 0 | Q12: 0 | R12: =SUM(Q12,K12,I12,H12,G12,F12,C12) -> 1357.668
A13: 3 | B13: Komunalne oświetlenie publiczne | C13: ='analizy sektor publiczny'!C7 -> 363.6648 | D13: 0 | E13: 0 | F13: 0 | G13: 0 | H13: 0 | I13: 0 | K13: 0 | Q13: 0 | R13: =SUM(Q13,K13,I13,H13,G13,F13,C13) -> 363.6648
B14: Gospodarstwa domowe | L14: =SUM(L11:L13) -> 0 | M14: =SUM(M11:M13) -> 0 | N14: =SUM(N11:N13) -> 0 | O14: =SUM(O11:O13) -> 0 | P14: =SUM(P11:P13) -> 0
A15: 4 | B15: gospodarstwa domowe - ogrzewanie | C15: ='analizy sektor prywatny'!C6 -> 0 | F15: ='analizy sektor prywatny'!F6 -> 13718.49786 | G15: ='analizy sektor prywatny'!H7 -> 4644 | H15: 0 | I15: ='analizy sektor prywatny'!I6 -> 4372.372 | K15: ='analizy sektor prywatny'!K6 -> 23040 | Q15: 0 | R15: =SUM(Q15,K15,I15,H15,G15,F15,C15,) -> 45774.86986
A16: 5 | B16: gospodarstwa domowe - energia elektyczna | C16: ='energia elektryczna'!D9/1000/'wskaźniki emisji'!C14 -> 7119.252 | F16: 0 | G16: 0 | H16: 0 | I16: 0 | K16: 0 | Q16: 0 | R16: =SUM(Q16,K16,I16,H16,G16,F16,C16) -> 7119.252
B17: Łącznie końcowe zużycie energii | C17: =C11+C12+C13+C15+C16 -> 8840.5848 | D17: =#REF!+D14 ->  | E17: =#REF!+E14 ->  | F17: =SUM(F15:F16) -> 13718.49786 | G17: =SUM(G15:G16) -> 4644 | H17: =SUM(H15:H16) -> 0 | I17: =SUM(I15:I16) -> 4372.372 | J17: =#REF!+J14 ->  | K17: =SUM(K15:K16) -> 23040 | L17: =#REF!+L14 ->  | M17: =#REF!+M14 ->  | N17: =#REF!+N14 ->  | O17: =#REF!+O14 ->  | P17: =#REF!+P14 ->  | Q17: =SUM(Q15:Q16) -> 0 | R17: =R11+R12+R13+R15+R16 -> 55998.40608
B20: Tabela: Wyniki inwentaryzacji bazowej emisji dwutlenku węgla w gminie [Mg CO2]
A21: lp. | B21: Kategoria | C21: emisje CO2 [t]
M22: OZE | R22: Razem
C23: energia elektryczna | D23: ciepło / chłód | E23: gaz ziemny | F23: gaz ziemny | G23: olej opałowy | H23: koks opałowy | I23: drewno | J23: węgiel brunatny | K23: węgiel kamienny | L23: inne paliwa kopalne | M23: olej roślinny | N23: inna biomasa | O23: słoneczna, cieplna | P23: geotermiczna | Q23: LPG
A24: I | B24: Gminne jednostki organizacyjne
A25: 1 | B25: Ogrzewanie budynków administracji publicznej | C25: 0 | D25: =INT('budynki uzytecznosci publicznej'!I32*'wskaźniki emisji'!C28+#REF!*'wskaźniki emisji'!C28) ->  | E25: =INT('budynki uzytecznosci publicznej'!H32*'wskaźniki emisji'!N37+#REF!*'wskaźniki emisji'!N37) ->  | F25: ='budynki uzytecznosci publicznej'!P18 -> 59.28323174 | G25: ='budynki uzytecznosci publicznej'!N18 -> 77.74430822 | H25: 0 | I25: 0 | K25: ='budynki uzytecznosci publicznej'!L18 -> 35.28 | Q25: 0 | R25: =SUM(Q25,K25,I25,H25,G25,F25,C25) -> 172.30754
A26: 2 | B26: Budynki administracji publicznej - energia elektryczna | C26: ='budynki uzytecznosci publicznej'!K18 -> 335.6457 | D26: =INT(#REF!*'wskaźniki emisji'!C28) ->  | E26: =INT(#REF!*'wskaźniki emisji'!N37) ->  | F26: 0 | G26: 0 | H26: 0 | I26: 0 | K26: 0 | Q26: 0 | R26: =SUM(Q26,K26,I26,H26,G26,F26,C26) -> 335.6457
A27: 3 | B27: Komunalne oświetlenie publiczne | C27: ='energia elektryczna'!G8 -> 89.90602 | D27: 0 | E27: 0 | F27: 0 | G27: 0 | H27: 0 | I27: 0 | K27: 0 | Q27: 0 | R27: =SUM(Q27,K27,I27,H27,G27,F27,C27) -> 89.90602
A28: II | B28: Gospodarstwa domowe | L28: =SUM(L25:L27) -> 0 | M28: =SUM(M25:M27) -> 0 | N28: =SUM(N25:N27) -> 0 | O28: =SUM(O25:O27) -> 0 | P28: =SUM(P25:P27) -> 0
A29: 1 | B29: Gospodarstwa domowe - ogrzewanie | C29: ='gospodarstwa domowe'!V9 -> 0 | F29: ='gospodarstwa domowe'!AA9 -> 754.5173822 | G29: ='gospodarstwa domowe'!Y9 -> 352.944 | H29: 0 | I29: ='gospodarstwa domowe'!X9 -> 476.588548 | K29: ='gospodarstwa domowe'!W9 -> 2257.92 | Q29: 0 | R29: =SUM(Q29,K29,I29,H29,G29,F29,C29,) -> 3841.96993
A30: 2 | B30: Gospodarstwa domowe - energia elektyczna | C30: ='energia elektryczna'!G15 -> 1760.0373 | F30: 0 | G30: 0 | H30: 0 | I30: 0 | K30: 0 | Q30: 0 | R30: =SUM(Q30,K30,I30,H30,G30,F30,C30) -> 1760.0373
B31: Razem | C31: =SUM(C25:C30) -> 2185.58902 | F31: =SUM(F25:F30) -> 813.800614 | G31: =SUM(G25:G30) -> 430.6883082 | H31: =SUM(H25:H30) -> 0 | I31: =SUM(I25:I30) -> 476.588548 | K31: =SUM(K25:K30) -> 2293.2 | Q31: =SUM(Q29:Q35) -> 0 | R31: =SUM(R25:R30) -> 6199.86649
B33: Transport
A34: 1 | B34: Transport lokalny | C34: =Transport!H15 -> 1604.85 | S34: =R31+C36 -> 7955.382544
A35: 2 | B35: Tranzyt | C35: =SUM(Tranzyt!N15,Tranzyt!R15,Tranzyt!R36,Tranzyt!N36) -> 150.666054
B36: Razem | C36: =SUM(C34:C35) -> 1755.516054
B39: Wykres: Struktura sektorowa inwentaryzacji bazowej emisji dwutlenku węgla [%]
T41: tabela pomocnicza | U41: emisja CO2
T42: Kategoria | U42: Sektory
T43: =B25 -> Ogrzewanie budynków administracji publicznej | U43: =R25 -> 172.30754
T44: =B26 -> Budynki administracji publicznej - energia elektryczna | U44: =R26 -> 335.6457
T45: =B27 -> Komunalne oświetlenie publiczne | U45: =R27 -> 89.90602
T46: =B28 -> Gospodarstwa domowe | U46: =SUM(R29:R30) -> 5602.00723
T47: transport | U47: =C36 -> 1755.516054
T50: Razem | U50: =SUM(U43:U49) -> 7955.382544

Sheet monitoring
B3: Tabela: Wartości wskaźników oceny dla roku bazowego
A5: Lp. | B5: Wskaźniki oceny | C5: Jednostka | D5: =tytuł!C25 -> 0
A6: 1 | B6: Poziom emisji dwutlenku węgla w gminie | C6: Mg CO2/rok | D6: =wyniki!R31+wyniki!C36 -> 7955.382544
A7: 2 | B7: Wielkość emisji dwutlenku węgla w sektorze publicznym | C7: Mg CO2/rok | D7: =SUM(wyniki!R25:R27) -> 597.85926
A8: 3 | B8: Emisja dwutlenku węgla per capita | C8: Mg CO2/os. | D8: =SUM(wyniki!R31,wyniki!C36)/założenia!C6 -> 2.936649149
A9: 4 | B9: Poziom zużycia energii końcowej w sektorze publicznym | C9: MWh/rok | D9: ='analizy sektor publiczny'!L10*'wskaźniki emisji'!C14 -> 862.3011733
A10: 5 | B10: Całkowite zużycie energii | C10: MWh/rok | D10: =SUM('analizy sektor publiczny'!L10,'analizy sektor prywatny'!O7)*'wskaźniki emisji'!C14 -> 13577.5428
A11: 6 | B11: Zużycie energii końcowej per capita | C11: MWh/os. | D11: =D10/założenia!C6 -> 5.012012846

Sheet analizy sektor publiczny
A1: Analizy i wskaźniki - sektor publiczny
B4: Tabela: Finalne zużycie energii w sektorze publicznym w roku bazowym [GJ]
A5: lp. | B5: Żródło emisji | C5: energia elektryczna | D5: olej opałowy | E5: gaz ciekły | F5: gaz ziemny | G5: benzyna | H5: olej napędowy | I5: węgiel brunatny | J5: węgiel kamienny | K5: OZE | L5: razem
A6: 1 | B6: Obiekty użyteczności publicznej | C6: ='budynki uzytecznosci publicznej'!D18/1000/'wskaźniki emisji'!C14 -> 1357.668 | D6: 0 | E6: 0 | F6: ='budynki uzytecznosci publicznej'!I18 -> 1022.951424 | G6: 0 | H6: 0 | I6: 0 | J6: ='budynki uzytecznosci publicznej'!J18 -> 360 | K6: 0 | L6: =SUM(C6:K6) -> 2740.619424
A7: 3 | B7: Komunalne oświetlenie publiczne | C7: ='energia elektryczna'!D8/1000/'wskaźniki emisji'!C14 -> 363.6648 | D7: 0 | E7: 0 | F7: 0 | G7: 0 | H7: 0 | I7: 0 | J7: 0 | K7: 0 | L7: =SUM(C7:K7) -> 363.6648
A8: 4 | B8: Tabor gminny | C8: bd | D8: 0 | E8: 0 | F8: 0 | G8: 0 | H8: 0 | I8: 0 | J8: 0 | K8: 0 | L8: =SUM(C8:K8) -> 0
A9: 5 | B9: Transport publiczny | C9: bd | D9: 0 | E9: 0 | F9: 0 | G9: 0 | H9: 0 | I9: 0 | J9: 0 | K9: 0 | L9: =SUM(C9:K9) -> 0
B10: Łącznie zużycie energii | C10: =SUM(C6:C9) -> 1721.3328 | D10: =SUM(D6:D9) -> 0 | E10: =SUM(E6:E9) -> 0 | F10: =SUM(F6:F9) -> 1022.951424 | G10: 0 | H10: 0 | I10: =SUM(I6:I9) -> 0 | J10: =SUM(J6:J9) -> 360 | K10: =SUM(K6:K9) -> 0 | L10: =SUM(C10:K10) -> 3104.284224
N12: =L10+'analizy sektor prywatny'!O6 -> 48879.15408
B13: Wykres: Struktura udziału poszczególnych podsektorów w finalnym zużyciu energii sektora publicznego w roku bazowym [%]
R14: tabela pomocnicza
R15: Kategoria | S15: Publiczne
R16: =B6 -> Obiekty użyteczności publicznej | S16: =L6 -> 2740.619424
R17: =B7 -> Komunalne oświetlenie publiczne | S17: =L7 -> 363.6648
R18: =B8 -> Tabor gminny | S18: =L8 -> 0
R19: =B9 -> Transport publiczny | S19: =L9 -> 0
R20: Razem | S20: =SUM(S16:S19) -> 3104.284224
B25: Wykres: Struktura udziału poszczególnych nośników energii w finalnym zużyciu energii sektora publicznego w roku bazowym [%] | R25: tabela pomocnicza
R26: Kategoria | S26: Paliwa
R27: =C5 -> energia elektryczna | S27: =C10 -> 1721.3328
R28: =D5 -> olej opałowy | S28: =D10 -> 0
R29: =E5 -> gaz ciekły | S29: =E10 -> 0
R30: =F5 -> gaz ziemny | S30: =F10 -> 1022.951424
R31: =G5 -> benzyna | S31: =G10 -> 0
R32: =H5 -> olej napędowy | S32: =H10 -> 0
R33: =I5 -> węgiel brunatny | S33: =I10 -> 0
R34: =J5 -> węgiel kamienny | S34: =J10 -> 360
R35: =K5 -> OZE | S35: =K10 -> 0
R36: Razem | S36: =SUM(S27:S35) -> 3104.284224

Sheet analizy sektor prywatny
A1: Analizy i wskaźniki - sektor prywatny
B4: Tabela: Finalne zużycie energii w sektorze prywatnym w roku bazowym [GJ]
A5: lp. | B5: Kategoria | C5: energia elektryczna | D5: ciepło / chłód | E5: gaz ziemny | F5: gaz ziemny | G5: olej opałowy | H5: olej opałowy | I5: drewno | J5: węgiel brunatny | K5: węgiel kamienny | L5: inne paliwa kopalne | M5: OZE | N5: LPG | O5: razem
A6: 1 | B6: Gospodarstwa domowe | C6: ='gospodarstwa domowe'!H8/'wskaźniki emisji'!C14 -> 0 | D6: =INT(#REF!)*'wskaźniki emisji'!C14 ->  | E6: =INT((#REF!*'wskaźniki emisji'!N23)) ->  | F6: ='gospodarstwa domowe'!N8 -> 13718.49786 | G6: =INT((#REF!)*'wskaźniki emisji'!N28) ->  | H6: ='gospodarstwa domowe'!L9 -> 4644 | I6: ='gospodarstwa domowe'!P8 -> 4372.372 | J6: 0 | K6: ='gospodarstwa domowe'!S8 -> 23040 | L6: 0 | M6: 0 | N6: 0 | O6: =SUM(C6,F6,H6,I6,K6) -> 45774.86986
B7: Łącznie zużycie energii | C7: =SUM(C6:C6) -> 0 | F7: 13718.49786 | H7: 4644 | I7: 4372.372 | J7: 0 | K7: 23040 | L7: 0 | O7: =SUM(O6) -> 45774.86986
U9: tabela pomocnicza
B10: Wykres: Struktura udziału poszczególnych nośników energii w finalnym zużyciu energii sektora prywatnego w roku bazowym [%] | U10: Kategoria | V10: Paliwa
U11: =C5 -> energia elektryczna | V11: =C7 -> 0
U12: =F5 -> gaz ziemny | V12: =F7 -> 13718.49786
U13: =H5 -> olej opałowy | V13: =H7 -> 4644
U14: =I5 -> drewno | V14: =I7 -> 4372.372
U15: =J5 -> węgiel brunatny | V15: =J7 -> 0
U16: =K5 -> węgiel kamienny | V16: =K7 -> 23040
U17: OZE | V17: 0
V18: =SUM(V11:V17) -> 45774.86986

Sheet budynki uzytecznosci publicznej
B1: budynki uzytecznosci publicznej
B4: rok bazowy | C4: 2007
A6: lp. | B6: Dane podstawowe / Źródła energii | C6: Źródło ciepła | D6: energia elektryczna | E6: węgiel kamienny | F6: koks opałowy | G6: olej opałowy | H6: gaz ziemny | I6: gaz- ilość wyprodukowanej energii (GJ) | J6: węgiel- ilość wyprodukowanej energii (GJ) | K6: Obliczenie wielkości emisji CO2
B7: Nazwa | D7: roczne zużycie [kWh] | E7: roczne zużycie [Mg] | F7: roczne zużycie [Mg] | G7: roczne zużycie [t] | H7: roczne zużycie [m3] | I7: roczne zużycie [GJ] | J7: roczne zużycie [GJ] | K7: energia elektryczna | L7: węgiel kamienny | M7: koks opałowy | N7: olej opałowy | O7: LPG (gaz płynny) | P7: gaz ziemny | Q7: sieć cieplna | R7: razem
K8: =D8/1000*'wskaźniki emisji'!C11 -> 0 | L8: =E8*'wskaźniki emisji'!$G$30 -> 0 | M8: 0 | N8: =I8*'wskaźniki emisji'!C9 -> 0 | O8: 0 | P8: 0 | R8: =SUM(K8:Q8) -> 0
A9: 1 | B9: Zespół Oświatowy | C9: gaz | D9: 292000 | H9: 18000 | I9: =H9*założenia!C29 -> 719.26272 | K9: =D9/1000*'wskaźniki emisji'!C11 -> 259.88 | L9: =J9*'wskaźniki emisji'!C10 -> 0 | M9: 0 | N9: =G9*'wskaźniki emisji'!$J$28*'wskaźniki emisji'!$G$28 -> 0 | O9: 0 | P9: =I9*'wskaźniki emisji'!C8 -> 39.5594496 | R9: 299.4394496
A10: 2 | B10: Urząd Miasta Stoczek Łukowski | C10: węgiel | D10: 26000 | E10: 8 | J10: =E10*założenia!C28 -> 192 | K10: =D10/1000*'wskaźniki emisji'!$G$31 -> 23.14 | L10: =J10*'wskaźniki emisji'!C10 -> 18.816 | M10: 0 | O10: 0 | P10: =I10*'wskaźniki emisji'!C8 -> 0 | R10: 41.956
A11: 3 | B11: Miejski Ośrodek Kultury | C11: gaz | D11: 21900 | H11: 4000 | I11: =H11*założenia!C29 -> 159.83616 | K11: =D11/1000*'wskaźniki emisji'!C11 -> 19.491 | L11: =J11*'wskaźniki emisji'!$G$30 -> 0 | M11: 0 | O11: 0 | P11: =I11*'wskaźniki emisji'!C8 -> 8.7909888
A12: 4 | B12: Miejski Ośrodek Pomocy Społecznej | C12: węgiel | D12: 7300 | E12: 2 | J12: =E12*założenia!C28 -> 48 | K12: =D12/1000*'wskaźniki emisji'!$G$31 -> 6.497 | L12: =J12*'wskaźniki emisji'!C10 -> 4.704 | M12: 0 | N12: =G12*'wskaźniki emisji'!$J$28*'wskaźniki emisji'!$G$28 -> 0 | O12: 0 | P12: =I12*'wskaźniki emisji'!C8 -> 0 | R12: 11.201
A13: 5 | B13: Miejski Zakład Gospodarki Komunalnej | C13: węgiel | D13: 8030 | E13: 5 | J13: =E13*założenia!C28 -> 120 | K13: =D13/1000*'wskaźniki emisji'!$G$31 -> 7.1467 | L13: =E13*'wskaźniki emisji'!$G$30 -> 3.634166667 | M13: 0 | N13: =G13*'wskaźniki emisji'!$J$28*'wskaźniki emisji'!$G$28 -> 0 | O13: 0 | P13: =I13*'wskaźniki emisji'!C8 -> 0 | R13: 10.78086667
A14: 6 | B14: Warsztat Terapii Zajęciowej | C14: gaz | D14: 21900 | H14: 3600 | I14: =H14*założenia!C29 -> 143.852544 | K14: =D14/1000*'wskaźniki emisji'!$G$31 -> 19.491 | L14: =E14*'wskaźniki emisji'!$G$30 -> 0 | M14: 0 | N14: =G14*'wskaźniki emisji'!$J$28*'wskaźniki emisji'!$G$28 -> 0 | O14: 0 | P14: =I14*'wskaźniki emisji'!C9 -> 10.93279334 | R14: 30.42379334
A15: 8 | K15: =D15/1000*'wskaźniki emisji'!$G$31 -> 0 | L15: =E15*'wskaźniki emisji'!$G$30 -> 0 | M15: 0 | N15: =G15*'wskaźniki emisji'!$J$28*'wskaźniki emisji'!$G$28 -> 0 | O15: 0 | P15: =I15*'wskaźniki emisji'!C8 -> 0 | R15: 0
A16: 9 | K16: =D16/1000*'wskaźniki emisji'!$G$31 -> 0 | L16: =E16*'wskaźniki emisji'!$G$30 -> 0 | M16: 0 | N16: =G16*'wskaźniki emisji'!$J$28*'wskaźniki emisji'!$G$28 -> 0 | O16: 0 | P16: =I16*'wskaźniki emisji'!C8 -> 0 | R16: 0
A17: 10 | K17: =D17/1000*'wskaźniki emisji'!$G$31 -> 0 | L17: =E17*'wskaźniki emisji'!$G$30 -> 0 | M17: 0 | N17: =G17*'wskaźniki emisji'!$J$28*'wskaźniki emisji'!$G$28 -> 0 | O17: 0 | P17: =I17*'wskaźniki emisji'!C8 -> 0 | R17: 0
B18: razem | D18: =SUM(D8:D17) -> 377130 | E18: 15 | F18: 0 | G18: 0 | H18: 25600 | I18: 1022.951424 | J18: =SUM(J8:J17) -> 360 | K18: =D18/1000*'wskaźniki emisji'!$G$31 -> 335.6457 | L18: =J18*'wskaźniki emisji'!C10 -> 35.28 | M18: 0 | N18: =I18*'wskaźniki emisji'!C9 -> 77.74430822 | O18: 0 | P18: =SUM(P8:P17) -> 59.28323174 | R18: =SUM(K18:P18) -> 507.95324
H21: =SUM(K18:Q18) -> 507.95324 | I21: (sumaryczna ilość dla wszystkich budynków)

Sheet energia elektryczna
B1: Energia elektryczna
B4: rok bazowy | C4: 2007 | D4: 2007
A6: lp. | B6: Dane podstawowe / Zużycie energii | C6: Liczba lamp [szt.] | D6: energia elektryczna | E6: Uwagi | G6: Obliczenia pomocnicze oswietlenie uliczne
B7: Nazwa jednostki | D7: roczne zużycie [kWh] | G7: roczna emisja CO2 | H7: jednostkowe zużycie energii | I7: emisja roczna CO2 w przeliczeniu na 1 lampę
A8: 1 | B8: Oświetlenie uliczne | C8: 975 | D8: 101018 | G8: =D8*'wskaźniki emisji'!C11/1000 -> 89.90602 | H8: =IFERROR(D8/C8,"-") -> 103.6082051 | I8: =IFERROR(G8/C8,"-") -> 0.09221130256
A9: 2 | B9: Energia elektryczna-gospodarstwa domowe | C9: 0 | D9: =założenia!C6*założenia!C12 -> 1977570
A10: 3 | B10: Energia elektryczna gminne jednostki organizacyjne | C10: 0 | D10: ='budynki uzytecznosci publicznej'!D18 -> 377130
B11: razem | D11: =SUM(D8:D10) -> 2455718
G13: Obliczenia pomocnicze energia elektryczna
G14: roczna emisja CO2 -pozostali gospodarstwa domowe | H14: emisja roczna CO2 - gminne jednostki organizacyjne | I14: razem emisja z energii elektrycznej
G15: =D9/1000*'wskaźniki emisji'!C11 -> 1760.0373 | H15: =D10/1000*'wskaźniki emisji'!C11 -> 335.6457 | I15: =SUM(G8,G15,H15) -> 2185.58902

Sheet gospodarstwa domowe
B1: Mieszkalnictwo zapotrzebowanie na energię cieplną
B4: rok bazowy | C4: =wyniki!C1 -> 0 | F4: =tytuł!C25 -> 0 | G4: 2007 | I4: =tytuł!C25 -> 0
A6: lp. | B6: Dane podstawowe / Źródła energii | C6: Powierzchnia budynków [m2] | D6: Źródło ciepła | E6: Liczba mieszkańców | F6: Liczba gospodarstw domowych | G6: Powierzchnia w m2 | H6: energia elektryczna | I6: Zapotrzebowanie na energię cieplną | K6: olej opałowy | M6: gaz ziemny | O6: drewno | Q6: OZE | R6: węgiel kamienny | T6: Uwagi | V6: Obliczenie wielkości emisji CO2
B7: Nazwa jednostki | H7: zapotrzebowanie [MWh] | I7: roczne zużycie [kWh] | J7: zapotrzebowanie [GJ] | K7: roczne zużycie [t] | L7: ilość wyprodukowanej energii [GJ] | M7: roczne zużycie [m3] | N7: ilość wyprodukowanej energii [GJ] | O7: roczne zużycie [m3] | P7: ilość wyprodukowanej energii [GJ] | Q7: roczne zużycie [m3] | R7: roczne zużycie [t] | S7: ilość wyprodukowanej energii[GJ] | V7: energia elektryczna | W7: węgiel kamienny | X7: drewno | Y7: olej opałowy | Z7: LPG (gaz płynny) | AA7: gaz ziemny | AB7: OZE | AC7: razem
A8: 1 | B8: Zasoby mieszkaniowe na terenie Gminy | C8: =założenia!C17 -> 63576 | E8: =założenia!C6 -> 2709 | F8: =założenia!C15 -> 948 | G8: =założenia!C17 -> 63576 | H8: =założenia!C22 -> 0 | I8: =G8*założenia!C26 -> 12715200 | J8: =I8/'wskaźniki emisji'!C14/1000 -> 45774.72 | K8: =założenia!C25 -> 108 | L8: =założenia!C25*założenia!C31 -> 4644 | M8: =założenia!C23 -> 343314 | N8: =M8*założenia!C29 -> 13718.49786 | O8: =założenia!C24 -> 572.3 | P8: =O8*założenia!C30 -> 4372.372 | Q8: 0 | R8: =założenia!C21 -> 960 | S8: =R8*założenia!C28 -> 23040 | V8: =H9*'wskaźniki emisji'!C11 -> 0 | W8: =S9*'wskaźniki emisji'!C10 -> 2257.92 | X8: =P9*'wskaźniki emisji'!C7 -> 476.588548 | Y8: =L9*'wskaźniki emisji'!C9 -> 352.944 | Z8: 0 | AA8: =N8*'wskaźniki emisji'!C8 -> 754.5173822 | AB8: 0 | AC8: =SUM(V8:AB8) -> 3841.96993
B9: razem | H9: =SUM(H8:H8) -> 0 | I9: =SUM(I8:I8) -> 12715200 | J9: =SUM(J8:J8) -> 45774.72 | K9: 0 | L9: =SUM(L8:L8) -> 4644 | M9: 343314 | N9: 13718.49786 | O9: 572.3 | P9: 4372.372 | Q9: 0 | R9: 960 | S9: 23040 | V9: =SUM(V8:V8) -> 0 | W9: =SUM(W8:W8) -> 2257.92 | X9: =SUM(X8:X8) -> 476.588548 | Y9: =SUM(Y8:Y8) -> 352.944 | Z9: 0 | AA9: =SUM(AA8:AA8) -> 754.5173822 | AB9: =SUM(AB8:AB8) -> 0 | AC9: =SUM(AC8:AC8) -> 3841.96993
L11: OZE: | M11: =Q9 -> 0
L12: drewno [m3] | M12: =SUM(O9,Q9) -> 572.3

Sheet Transport
B1: Transport lokalny
B4: rok bazowy | C4: 2007
A6: lp. | C6: Liczba pojazdów [szt.] | D6: średni roczny przebieg [km] | E6: Uwagi | G6: Obliczenie wielkości emisji CO2 transport lokalny [Mg]
B7: Rodzaj pojazdów | G7: rodzaje pojazdów | H7: emisja
A8: 1 | B8: samochody osobowe | C8: =założenia!C34 -> 700 | D8: 10500 | G8: samochody osobowe | H8: =C8*D8*'wskaźniki emisji'!C34/1000000 -> 1139.25
A9: 2 | B9: motocykle | C9: =założenia!C35 -> 150 | D9: 4000 | G9: motocykle | H9: =C9*D9*'wskaźniki emisji'!C39/1000000 -> 90
A10: 3 | B10: samochody dostawcze | C10: =założenia!C36 -> 120 | D10: 8000 | G10: samochody dostawcze | H10: =C10*D10*'wskaźniki emisji'!C35/1000000 -> 192
A11: 4 | B11: samochody ciężarowe | C11: =założenia!C37 -> 20 | D11: 6000 | G11: samochody ciężarowe | H11: =C11*D11*'wskaźniki emisji'!C36/1000000 -> 54
A12: 5 | B12: samochody ciężarowe z przyczepą | C12: =założenia!C38 -> 12 | D12: 6500 | G12: samochody ciężarowe z przyczepą | H12: =C12*D12*'wskaźniki emisji'!C37/1000000 -> 70.2
A13: 6 | B13: ciągniki | C13: =założenia!C39 -> 50 | D13: 2000 | G13: ciągniki | H13: =C13*D13*'wskaźniki emisji'!C36/1000000 -> 45
A14: 8 | B14: autobusy | C14: =założenia!C40 -> 4 | D14: 8000 | G14: autobusy | H14: =C14*D14*'wskaźniki emisji'!C38/1000000 -> 14.4
A15: 9 | G15: razem | H15: =SUM(H8:H14) -> 1604.85
A16: 10
A17: 11
A18: 12
A19: 13
A20: 14
A21: 15
A22: 16
B23: razem | C23: =SUM(C8:C14) -> 1056

Sheet Tranzyt
B1: Tranzyt droga krajowa nr 12 i 17 i droga wojewódzka nr 835
B3: Źródło: opracowanie własne na podstawie danych Starostwa Powiatowego w Lublinie, Wydział Infrastruktury Drogowej,Pomiar ruchu na drogach wojewódzkich i krajowych GDDKiA 2010r.
B4: rok bazowy | C4: =założenia!C4 -> 2007
A6: lp. | C6: tranzyt nadrodze wojewódziej nr 803 [szt./doba] | D6: długość drogi nr 698 [km] | K6: Uwagi | M6: Obliczenie wielkości emisji CO2 tranzyt [Mg] -droga nr 803
B7: Rodzaj pojazdów | M7: rodzaje pojazdów | N7: emisja
A8: 1 | B8: samochody osobowe | C8: 14 | D8: 1.21 | M8: samochody osobowe | N8: =C8*D8*'wskaźniki emisji'!C34*365/1000000 -> 0.9583805
A9: 2 | B9: motocykle | C9: 1363 | D9: 1.21 | M9: motocykle | N9: =C9*D9*'wskaźniki emisji'!C39*365/1000000 -> 90.2953425
A10: 3 | B10: samochody dostawcze | C10: 214 | D10: 1.21 | M10: samochody dostawcze | N10: =C10*D10*'wskaźniki emisji'!C35*365/1000000 -> 18.90262
A11: 4 | B11: samochody ciężarowe | C11: 65 | D11: 1.21 | M11: samochody ciężarowe | N11: =C11*D11*'wskaźniki emisji'!C36*365/1000000 -> 12.9182625
A12: 5 | B12: samochody ciężarowe z przyczepą | C12: 44 | D12: 1.21 | M12: samochody ciężarowe z przyczepą | N12: =C12*D12*'wskaźniki emisji'!C37*356/1000000 -> 17.058096
A13: 7 | B13: ciągniki | C13: 7 | D13: 1.21 | M13: ciągniki | N13: =C13*D13*'wskaźniki emisji'!C36*365/1000000 -> 1.3911975
A14: 8 | B14: autobusy | C14: 46 | D14: 1.21 | M14: autobusy | N14: =C14*D14*'wskaźniki emisji'!C38*365/1000000 -> 9.142155
A15: 9 | M15: razem | N15: =SUM(N8:N14) -> 150.666054
A16: 10
A17: 11
A18: 12
A19: 13
A20: 14
A21: 15
A22: 16
B23: razem | C23: =SUM(C8:C14) -> 1753 | E23: =SUM(E8:E14) -> 0 | G23: =SUM(G8:G22) -> 0 | I23: =SUM(I8:I22) -> 0
G25: =C23+E23+G23+I23 -> 1753
M27: Obliczenie wielkości emisji CO2 tranzyt [Mg] -droga nr 830 | Q27: Obliczenie wielkości emisji CO2 tranzyt [Mg] -droga nr 860
M28: rodzaje pojazdów | N28: emisja | Q28: rodzaje pojazdów | R28: emisja
M29: samochody osobowe | N29: =G8*H8*'wskaźniki emisji'!C34*356/1000000 -> 0 | Q29: samochody osobowe | R29: =I8*J8*'wskaźniki emisji'!C34*356/1000000 -> 0
M30: motocykle | N30: =G9*H9*'wskaźniki emisji'!C35*356/1000000 -> 0 | Q30: motocykle | R30: =I9*J9*'wskaźniki emisji'!C35*356/1000000 -> 0
M31: samochody dostawcze | N31: =G10*H10*'wskaźniki emisji'!C36*356/1000000 -> 0 | Q31: samochody dostawcze | R31: =I10*J10*'wskaźniki emisji'!C36*356/1000000 -> 0
M32: samochody ciężarowe | N32: =G11*H11*'wskaźniki emisji'!C37*356/1000000 -> 0 | Q32: samochody ciężarowe | R32: =I11*J11*'wskaźniki emisji'!C37*356/1000000 -> 0
M33: samochody ciężarowe z przyczepą | N33: =G12*H12*'wskaźniki emisji'!C38*356/1000000 -> 0 | Q33: samochody ciężarowe z przyczepą | R33: =I12*J12*'wskaźniki emisji'!C38*356/1000000 -> 0
M34: ciągniki | N34: =G13*H13*'wskaźniki emisji'!C39*356/1000000 -> 0 | Q34: ciągniki | R34: =I13*J13*'wskaźniki emisji'!C39*356/1000000 -> 0
M35: autobusy | N35: =G14*H14*'wskaźniki emisji'!C40*356/1000000 -> 0 | Q35: autobusy | R35: =I14*J14*'wskaźniki emisji'!C40*356/1000000 -> 0
M36: razem | N36: =SUM(N29:N35) -> 0 | Q36: razem | R36: =SUM(R29:R35) -> 0

Sheet prognoza na rok 2020 z perspek
B1: Tabela: Finalne zużycie energii w roku 2020 w gminie [GJ]
A2: lp. | B2: Kategoria | C2: końcowe zużycie energii [GJ]
L3: OZE | Q3: Razem
C4: energia elektryczna | D4: ciepło / chłód | E4: gaz ziemny | F4: olej opałowy | G4: koks opałowy | H4: drewno | I4: węgiel kamienny | J4: węgiel brunatny | K4: inne paliwa kopalne | L4: olej roślinny | M4: inna biomasa (t) | N4: słoneczna | O4: geotermiczna | P4: LPG
A5: I | B5: Gminne jednostki organizacyjne
A6: 1 | B6: Ogrzewanie budynków administracji publicznej | C6: 0 | D6: 0 | E6: =wyniki!F11*0.6 -> 613.7708544 | F6: 0 | G6: 0 | H6: 0 | I6: 0 | J6: 0 | P6: 0 | Q6: =E6 -> 613.7708544
A7: 2 | B7: Budynki administracji publicznej - energia elektryczna | C7: =wyniki!C12*0.7 -> 950.3676 | D7: 0 | E7: 0 | F7: 0 | G7: 0 | H7: 0 | I7: 0 | J7: 0 | P7: 0 | Q7: =SUM(P7,J7,H7,G7,F7,E7,C7) -> 950.3676
A8: 3 | B8: Komunalne oświetlenie publiczne | C8: =wyniki!C13*0.8 -> 290.93184 | D8: 0 | E8: 0 | F8: 0 | G8: 0 | H8: 0 | I8: 0 | J8: 0 | P8: 0 | Q8: =SUM(P8,J8,H8,G8,F8,E8,C8) -> 290.93184
B9: Gospodarstwa domowe | K9: =SUM(K6:K8) -> 0 | L9: =SUM(L6:L8) -> 0 | M9: =SUM(M6:M8) -> 0 | N9: =SUM(N6:N8) -> 0 | O9: =SUM(O6:O8) -> 0 | Q9: 0
A10: 4 | B10: ogrzewanie | C10: =wyniki!C15*0.8 -> 0 | D10: 0 | E10: =wyniki!F15*1.4 -> 19205.897 | F10: 0 | G10: 0 | H10: =wyniki!I15*0.95 -> 4153.7534 | I10: =wyniki!K15*0.4 -> 9216 | J10: 0 | K10: 0 | L10: 0 | M10: 0 | N10: 9298 | O10: 0 | P10: 0 | Q10: =SUM(C10:P10) -> 41873.6504
A11: 5 | B11: energia elektyczna konwencjonalna | C11: =wyniki!C16*1.17-C12 -> 1187.52484 | D11: 0 | E11: 0 | F11: 0 | G11: 0 | H11: 0 | I11: 0 | J11: 0 | P11: 0 | Q11: =C11+N11 -> 1187.52484
A12: 6 | B12: energia elektyczna OZE | C12: 7142 | Q12: =C12 -> 7142 | R12: =C12+N10+H10 -> 20593.7534
B13: Łącznie końcowe zużycie energii | C13: =SUM(C6:C12) -> 9570.82428 | E13: =E6+E10 -> 19819.66786 | F13: =SUM(F10:F11) -> 0 | G13: =SUM(G10:G11) -> 0 | H13: =SUM(H10:H11) -> 4153.7534 | I13: =I10 -> 9216 | J13: =SUM(J10:J11) -> 0 | K13: 0 | L13: 0 | M13: 0 | N13: =N10 -> 9298 | O13: 0 | P13: =SUM(P10:P11) -> 0 | Q13: =Q6+Q7+Q8+Q10+Q11+Q12 -> 52058.24554
B16: Tabela: Wyniki inwentaryzacji bazowej emisji dwutlenku węgla w gminie [Mg CO2]
A17: lp. | B17: Kategoria | C17: emisje CO2 [t]
L18: OZE | Q18: Razem
C19: energia elektryczna | D19: ciepło / chłód | E19: gaz ziemny | F19: olej opałowy | G19: koks opałowy | H19: drewno | I19: węgiel kamienny | J19: węgiel brunatny | K19: inne paliwa kopalne | L19: olej roślinny | M19: inna biomasa | N19: słoneczna, cieplna | O19: geotermiczna | P19: LPG
A20: I | B20: Gminne jednostki organizacyjne
A21: 1 | B21: Ogrzewanie budynków administracji publicznej | C21: 0 | D21: 0 | E21: =E6*'wskaźniki emisji'!C8 -> 33.75739699 | F21: 0 | G21: 0 | H21: 0 | I21: 0 | J21: 0 | M21: 0 | P21: 0 | Q21: =SUM(P21,J21,H21,G21,F21,E21,C21) -> 33.75739699
A22: 2 | B22: Budynki administracji publicznej - energia elektryczna | C22: =(C7/'wskaźniki emisji'!C15)*'wskaźniki emisji'!C11 -> 234.95199 | D22: 0 | E22: 0 | F22: 0 | G22: 0 | H22: 0 | I22: 0 | J22: 0 | P22: 0 | Q22: =SUM(P22,J22,H22,G22,F22,E22,C22) -> 234.95199
A23: 3 | B23: Komunalne oświetlenie publiczne | C23: =(C8/'wskaźniki emisji'!C15)*'wskaźniki emisji'!C11 -> 71.924816 | D23: 0 | E23: 0 | F23: 0 | G23: 0 | H23: 0 | I23: 0 | J23: 0 | P23: 0 | Q23: =SUM(P23,J23,H23,G23,F23,E23,C23) -> 71.924816
A24: II | B24: Gospodarstwa domowe | K24: =SUM(K21:K23) -> 0 | L24: =SUM(L21:L23) -> 0 | M24: =SUM(M21:M23) -> 0 | N24: =SUM(N21:N23) -> 0 | O24: =SUM(O21:O23) -> 0
A25: 1 | B25: Gospodarstwa domowe - ogrzewanie | C25: =(C10/'wskaźniki emisji'!C15)*'wskaźniki emisji'!C11 -> 0 | D25: 0 | E25: =E10*'wskaźniki emisji'!C8 -> 1056.324335 | F25: =F10*'wskaźniki emisji'!C9 -> 0 | G25: 0 | H25: =H10*'wskaźniki emisji'!C7 -> 452.7591206 | I25: =I10*'wskaźniki emisji'!C10 -> 903.168 | J25: 0 | P25: 0 | Q25: =SUM(C24:J25) -> 2412.251456
A26: 2 | B26: Gospodarstwa domowe - energia elektyczna | C26: =(C11/'wskaźniki emisji'!C15)*'wskaźniki emisji'!C11 -> 293.5825299 | D26: 0 | E26: 0 | F26: 0 | G26: 0 | H26: 0 | I26: 0 | J26: 0 | P26: 0 | Q26: =SUM(P26,J26,H26,G26,F26,E26,C26) -> 293.5825299
B27: Razem | C27: =C21+C22+C23+C25+C26 -> 600.4593359 | D27: 0 | E27: =E21+E22+E23+E25+E26 -> 1090.081732 | F27: =SUM(F21:F26) -> 0 | G27: 0 | H27: =H25+H26+H21+H22+H23 -> 452.7591206 | I27: =I21+I22+I23+I25+I26 -> 903.168 | J27: 0 | K27: 0 | L27: 0 | M27: 0 | N27: 0 | O27: 0 | P27: =SUM(P25:P31) -> 0 | Q27: =SUM(Q21:Q26) -> 3046.468189
B29: Transport
B30: Transport lokalny | C30: =wyniki!C34*0.74 -> 1187.589 | R30: =Q27+C32 -> 4345.550069
B31: Tranzyt | C31: =wyniki!C35*0.74 -> 111.49288
C32: =C30+C31 -> 1299.08188
